fUSD/lending_fUSD_20251224
["ID","MTS","AMOUNT","RATE_DAILY","PERIOD"]
[399628442,1766572242042,-631.6683013,0.00015721,2]
[399628443,1766572242052,-1000.0,0.00015721,2]
[399628444,1766572242062,-1000.0,0.00015721,2]
[399628445,1766572242072,-1000.0,0.00015721,2]
[399628446,1766572242082,-1000.0,0.00015721,2]
[399628447,1766572242093,-1000.0,0.00015721,2]
[399628448,1766572242104,-1000.0,0.00015721,2]
[399628449,1766572242114,-1000.0,0.00015721,2]
[399628450,1766572242124,-1000.0,0.00015721,2]
[399628451,1766572242134,-1000.0,0.00015721,2]
[399628452,1766572242144,-1000.0,0.00015721,2]
[399628453,1766572242158,-1000.0,0.00015721,2]
[399628454,1766572242168,-1144.90304648,0.00015721,2]
[399628455,1766572242178,-1001.56481773,0.00015721,2]
[399628456,1766572242188,-1000.0,0.00015721,2]
[399628457,1766572242200,-659.04345804,0.00015721,2]
[399628458,1766572242210,-1000.0,0.00015721,2]
[399628459,1766572242221,-1000.0,0.00015721,2]
[399628460,1766572242232,-366.77928753,0.00015721,2]
[399628461,1766572242242,-1000.0,0.00015721,2]
[399628462,1766572242253,-537.6086795,0.00015721,2]
[399628463,1766572242263,-501.75154146,0.00015721,2]
[399628464,1766572242275,-1000.0,0.00015721,2]
[399628465,1766572242286,-304.45148549,0.00015721,2]
[399628466,1766572242296,-1000.0,0.00015721,2]
[399628467,1766572242307,-1000.0,0.00015721,2]
[399628468,1766572242317,-150.0,0.00015757,2]
[399628469,1766572242327,-150.9439251,0.00015784,2]
[399628470,1766572242337,-320.0,0.00015872,2]
[399628471,1766572242348,-255.0,0.00015883,2]
[399628472,1766572242358,-25405.33069754,0.00015921,2]
[399628473,1766572242368,-22773.42055353,0.00015921,2]
[399628474,1766572242379,-27664.38,0.00015955,2]
[399628475,1766572242389,-2137.14,0.00015993,2]
[399628476,1766572242399,-46980.70129656,0.00016,3]
[399628477,1766572242410,-206.68023,0.00016016,2]
[399628478,1766572242419,-420.0,0.0001609,2]
[399628479,1766572242430,-420.0,0.0001609,2]
[399628480,1766572242441,-322.6107,0.00016116,2]
[399628481,1766572242455,-500.0,0.00016116,2]
[399628482,1766572242465,-500.0,0.00016116,2]
[399628483,1766572242476,-500.0,0.00016116,2]
[399628484,1766572242487,-500.0,0.00016116,2]
[399628485,1766572242499,-500.0,0.00016116,2]
[399628486,1766572242509,-500.0,0.00016116,2]
[399628487,1766572242519,-500.0,0.00016116,2]
[399628488,1766572242529,-500.0,0.00016116,2]
[399628489,1766572242539,-500.0,0.00016116,2]
[399628490,1766572242548,-500.0,0.00016116,2]
[399628491,1766572242558,-500.0,0.00016116,2]
[399628492,1766572242568,-500.0,0.00016116,2]
[399628493,1766572242578,-500.0,0.00016116,2]
[399628494,1766572242588,-500.0,0.00016116,2]
[399628495,1766572242599,-500.0,0.00016116,2]
[399628496,1766572242609,-500.0,0.00016116,2]
[399628497,1766572242619,-500.0,0.00016116,2]
[399628498,1766572242629,-500.0,0.00016116,2]
[399628499,1766572242639,-500.0,0.00016116,2]
[399628500,1766572242650,-500.0,0.00016116,2]
[399628501,1766572242659,-500.0,0.00016116,2]
[399628502,1766572242669,-500.0,0.00016116,2]
[399628503,1766572242679,-500.0,0.00016116,2]
[399628504,1766572242689,-500.0,0.00016116,2]
[399628505,1766572242699,-500.0,0.00016116,2]
[399628506,1766572242711,-578.20924308,0.00016116,2]
[399628507,1766572242721,-500.0,0.00016116,2]
[399628508,1766572242732,-500.0,0.00016116,2]
[399628509,1766572242742,-500.0,0.00016116,2]
[399628510,1766572242752,-500.0,0.00016116,2]
[399628511,1766572242762,-500.0,0.00016116,2]
[399628512,1766572242772,-500.0,0.00016116,2]
[399628513,1766572242783,-500.0,0.00016116,2]
[399628514,1766572242793,-500.0,0.00016116,2]
[399628515,1766572242803,-500.0,0.00016116,2]
[399628516,1766572242813,-500.0,0.00016116,2]
[399628517,1766572242823,-500.0,0.00016116,2]
[399628518,1766572242833,-500.0,0.00016116,2]
[399628519,1766572242843,-500.0,0.00016116,2]
[399628520,1766572242853,-543.0,0.00016116,2]
[399628521,1766572242863,-253.74257372,0.00016116,2]
[399628522,1766572242873,-714.61817831,0.00016116,2]
[399628523,1766572242883,-500.0,0.00016116,2]
[399628524,1766572242893,-500.0,0.00016116,2]
[399628525,1766572242903,-500.0,0.00016116,2]
[399628527,1766572242913,-259.02685211,0.00016116,2]
[399628528,1766572242923,-620.0,0.00016116,2]
[399628529,1766572242934,-151.0,0.00016116,2]
[399628530,1766572242944,-156.587,0.00016116,2]
[399628531,1766572242954,-162.380719,0.00016116,2]
[399628532,1766572242963,-153.82745935,0.00016116,2]
[399628533,1766572242974,-250.0,0.00016116,2]
[399628534,1766572242983,-250.0,0.00016116,2]
[399628535,1766572242994,-200.0,0.00016116,2]
[399628536,1766572243004,-250.0,0.00016116,2]
[399628537,1766572243014,-207.4,0.00016116,2]
[399628538,1766572243024,-250.0,0.00016116,2]
[399628539,1766572243034,-215.0738,0.00016116,2]
[399628540,1766572243044,-250.0,0.00016116,2]
[399628541,1766572243054,-223.0315306,0.00016116,2]
[399628543,1766572243064,-250.0,0.00016116,2]
[399628544,1766572243074,-231.28369723,0.00016116,2]
[399628545,1766572243084,-261.58626416,0.00016116,2]
[399628546,1766572243094,-239.84119403,0.00016116,2]
[399628547,1766572243104,-248.71531821,0.00016116,2]
[399628548,1766572243114,-257.91778498,0.00016116,2]
[399628549,1766572243124,-267.46074303,0.00016116,2]
[399628551,1766572243134,-277.35679052,0.00016116,2]
[399628553,1766572243149,-500.0,0.00016116,2]
[399628555,1766572243159,-500.0,0.00016116,2]
[399628557,1766572243168,-500.0,0.00016116,2]
[399628559,1766572243178,-500.0,0.00016116,2]
[399628561,1766572243190,-500.0,0.00016116,2]
[399628563,1766572243200,-500.0,0.00016116,2]
[399628566,1766572243213,-500.0,0.00016116,2]
[399628567,1766572243222,-500.0,0.00016116,2]
[399628568,1766572243232,-261.6071653,0.00016116,2]
[399628569,1766572243243,-300.0,0.00016148,2]
[399628570,1766572243253,-193.0,0.00016148,2]
[399628571,1766572243263,-250.0,0.00016148,2]
[399628572,1766572243273,-600.0,0.00016148,2]
[399628573,1766572243283,-195.0,0.00016148,2]
[399628574,1766572243293,-300.0,0.00016157,2]
[399628575,1766572243305,-25405.33069754,0.00016166,2]
[399628576,1766572243316,-22773.42055353,0.00016166,2]
[399628577,1766572243326,-1680.0,0.00016167,2]
[399628578,1766572243336,-173.63,0.00016173,2]
[399628579,1766572243346,-1680.0,0.00016188,2]
[399628580,1766572243356,-88092.93110317,0.000162,5]
[399628581,1766572243367,-300.0,0.00016208,2]
[399628582,1766572243376,-195.0,0.00016208,2]
[399628583,1766572243387,-300.0,0.00016208,2]
[399628584,1766572243397,-1438.8540389,0.00016238,2]
[399628585,1766572243407,-195.0,0.00016238,2]
[399628586,1766572243418,-300.0,0.00016238,2]
[399628587,1766572243428,-2500.0,0.00016238,2]
[399628588,1766572243439,-600.0,0.00016238,2]
[399628589,1766572243448,-2137.14,0.00016267,2]
[399628590,1766572243458,-659.61432389,0.00016268,2]
[399628591,1766572243468,-1502.21103807,0.00016268,2]
[399628592,1766572243478,-1466.73216774,0.00016268,2]
[399628593,1766572243487,-1152.24771279,0.00016268,2]
[399628594,1766572243498,-1500.0,0.00016268,2]
[399628595,1766572243509,-1500.0,0.00016268,2]
[399628596,1766572243520,-1500.0,0.00016268,2]
[399628597,1766572243530,-1500.0,0.00016268,2]
[399628598,1766572243540,-1459.78950383,0.00016268,2]
[399628599,1766572243551,-1500.0,0.00016268,2]
[399628600,1766572243561,-1500.0,0.00016268,2]
[399628601,1766572243571,-1500.0,0.00016268,2]
[399628602,1766572243581,-1500.0,0.00016268,2]
[399628603,1766572243591,-1500.0,0.00016268,2]
[399628604,1766572243601,-1500.0,0.00016268,2]
[399628605,1766572243611,-1500.0,0.00016268,2]
[399628606,1766572243621,-1505.01239591,0.00016268,2]
[399628607,1766572243631,-1500.0,0.00016268,2]
[399628608,1766572243641,-500.0,0.00016277,2]
[399628609,1766572243651,-500.0,0.00016277,2]
[399628610,1766572243662,-500.0,0.00016277,2]
[399628611,1766572243672,-500.0,0.00016277,2]
[399628612,1766572243682,-500.0,0.00016277,2]
[399628613,1766572243692,-500.0,0.00016277,2]
[399628614,1766572243702,-500.0,0.00016277,2]
[399628615,1766572243713,-500.0,0.00016277,2]
[399628616,1766572243724,-500.0,0.00016277,2]
[399628617,1766572243734,-398.68934422,0.00016277,2]
[399628618,1766572243744,-500.0,0.00016277,2]
[399628620,1766572243754,-500.0,0.00016277,2]
[399628622,1766572243765,-500.0,0.00016277,2]
[399628623,1766572243776,-504.00842386,0.00016277,2]
[399628625,1766572243786,-500.0,0.00016277,2]
[399628627,1766572243797,-500.0,0.00016277,2]
[399628629,1766572243806,-500.0,0.00016277,2]
[399628630,1766572243816,-500.0,0.00016277,2]
[399628632,1766572243826,-500.0,0.00016277,2]
[399628634,1766572243836,-551.85860917,0.00016277,2]
[399628636,1766572243846,-500.0,0.00016288,2]
[399628638,1766572243857,-500.0,0.00016288,2]
[399628640,1766572243867,-8920.3448108,0.00016329,2]
[399628641,1766572243876,-2232.0,0.00016349,2]
[399628642,1766572243886,-2232.0,0.00016366,2]
[399628643,1766572243896,-2232.0,0.00016385,2]
[399628644,1766572243906,-2232.0,0.00016395,2]
[399628645,1766572243916,-25405.33069754,0.00016411,2]
[399628646,1766572243926,-22773.42055353,0.00016411,2]
[399628647,1766572243936,-500.0,0.00016437,2]
[399628648,1766572243947,-500.0,0.00016437,2]
[399628649,1766572243957,-500.0,0.00016437,2]
[399628650,1766572243968,-1360.68929456,0.00016438,2]
[399628651,1766572243978,-1360.68929456,0.00016438,2]
[399628652,1766572243988,-1360.68929456,0.00016438,2]
[399628653,1766572243999,-1360.68929456,0.00016438,2]
[399628654,1766572244010,-1360.68929456,0.00016438,2]
[399628655,1766572244020,-1360.68929456,0.00016438,2]
[399628656,1766572244031,-1360.68929456,0.00016438,2]
[399628657,1766572244041,-1360.68929456,0.00016438,2]
[399628658,1766572244051,-1360.68929456,0.00016438,2]
[399628659,1766572244061,-1360.68929456,0.00016438,2]
[399628660,1766572244072,-1360.68929456,0.00016438,2]
[399628661,1766572244082,-1360.68929456,0.00016438,2]
[399628662,1766572244093,-1360.68929456,0.00016438,2]
[399628663,1766572244102,-1360.68929456,0.00016438,2]
[399628664,1766572244112,-1360.68929456,0.00016438,2]
[399628665,1766572244123,-1360.68929456,0.00016438,2]
[399628666,1766572244132,-1360.68929456,0.00016438,2]
[399628667,1766572244145,-1360.68929456,0.00016438,2]
[399628668,1766572244157,-1360.68929456,0.00016438,2]
[399628669,1766572244167,-1360.68929456,0.00016438,2]
[399628670,1766572244177,-1360.68929456,0.00016438,2]
[399628671,1766572244187,-1360.68929456,0.00016438,2]
[399628672,1766572244197,-1360.68929456,0.00016438,2]
[399628673,1766572244206,-1360.68929456,0.00016438,2]
[399628674,1766572244216,-1360.68929456,0.00016438,2]
[399628675,1766572244228,-1360.68929456,0.00016438,2]
[399628676,1766572244238,-1360.68929456,0.00016438,2]
[399628677,1766572244248,-1360.68929456,0.00016438,2]
[399628678,1766572244259,-1360.68929456,0.00016438,2]
[399628679,1766572244270,-1360.68929456,0.00016438,2]
[399628680,1766572244280,-1360.68929456,0.00016438,2]
[399628681,1766572244290,-1360.68929456,0.00016438,2]
[399628682,1766572244300,-1360.68929456,0.00016438,2]
[399628683,1766572244309,-1360.68929456,0.00016438,2]
[399628684,1766572244319,-1360.68929456,0.00016438,2]
[399628685,1766572244329,-1360.68929456,0.00016438,2]
[399628686,1766572244339,-1360.68929456,0.00016438,2]
[399628687,1766572244348,-1360.68929456,0.00016438,2]
[399628688,1766572244357,-1360.68929456,0.00016438,2]
[399628689,1766572244366,-1360.68929456,0.00016438,2]
[399628690,1766572244376,-1360.68929456,0.00016438,2]
[399628691,1766572244385,-1360.68929456,0.00016438,2]
[399628692,1766572244394,-1360.68929456,0.00016438,2]
[399628693,1766572244404,-1360.68929456,0.00016438,2]
[399628694,1766572244413,-1360.68929456,0.00016438,2]
[399628695,1766572244422,-1360.68929456,0.00016438,2]
[399628696,1766572244432,-1360.68929456,0.00016438,2]
[399628697,1766572244441,-1360.68929456,0.00016438,2]
[399628698,1766572244450,-1360.68929456,0.00016438,2]
[399628699,1766572244460,-1360.68929456,0.00016438,2]
[399628700,1766572244469,-1360.68929456,0.00016438,2]
[399628701,1766572244479,-1360.68929456,0.00016438,2]
[399628702,1766572244488,-1360.68929456,0.00016438,2]
[399628703,1766572244498,-1360.68929456,0.00016438,2]
[399628704,1766572244509,-1360.68929456,0.00016438,2]
[399628705,1766572244518,-1360.68929456,0.00016438,2]
[399628706,1766572244528,-1360.68929456,0.00016438,2]
[399628707,1766572244537,-1360.68929456,0.00016438,2]
[399628708,1766572244547,-1360.68929456,0.00016438,2]
[399628709,1766572244571,-1360.68929456,0.00016438,2]
[399628710,1766572244582,-1360.68929456,0.00016438,2]
[399628711,1766572244592,-1360.68929456,0.00016438,2]
[399628712,1766572244602,-1360.68929456,0.00016438,2]
[399628713,1766572244612,-1360.68929456,0.00016438,2]
[399628714,1766572244622,-1360.68929456,0.00016438,2]
[399628715,1766572244632,-1322.58999432,0.00016438,2]
[399628716,1766572244642,-1322.58999432,0.00016438,2]
[399628717,1766572244652,-1322.58999432,0.00016438,2]
[399628718,1766572244662,-1322.58999432,0.00016438,2]
[399628719,1766572244673,-1322.58999432,0.00016438,2]
[399628720,1766572244682,-1322.58999432,0.00016438,2]
[399628721,1766572244693,-1322.58999432,0.00016438,2]
[399628722,1766572244703,-1322.58999432,0.00016438,2]
[399628723,1766572244713,-1322.58999432,0.00016438,2]
[399628724,1766572244723,-1322.58999432,0.00016438,2]
[399628725,1766572244732,-1322.58999432,0.00016438,2]
[399628726,1766572244741,-1322.58999432,0.00016438,2]
[399628727,1766572244751,-1322.58999432,0.00016438,2]
[399628728,1766572244760,-1322.58999432,0.00016438,2]
[399628729,1766572244770,-1322.58999432,0.00016438,2]
[399628730,1766572244780,-1322.58999432,0.00016438,2]
[399628731,1766572244790,-1322.58999432,0.00016438,2]
[399628732,1766572244800,-1322.58999432,0.00016438,2]
[399628733,1766572244811,-1322.58999432,0.00016438,2]
[399628734,1766572244822,-1322.58999432,0.00016438,2]
[399628735,1766572244831,-1322.58999432,0.00016438,2]
[399628736,1766572244842,-1322.58999432,0.00016438,2]
[399628737,1766572244851,-1322.58999432,0.00016438,2]
[399628738,1766572244861,-1322.58999432,0.00016438,2]
[399628739,1766572244871,-1322.58999432,0.00016438,2]
[399628740,1766572244882,-500.0,0.00016438,2]
[399628741,1766572244893,-500.0,0.00016438,2]
[399628742,1766572244903,-801.24318658,0.00016438,2]
[399628743,1766572244920,-206.68022999,0.00016461,2]
[399628744,1766572244931,-500.0,0.00016465,2]
[399628745,1766572244941,-505.03256826,0.00016465,2]
[399628746,1766572244952,-500.0,0.00016493,2]
[399628747,1766572245362,-1363.31060661,0.00016494,2]
[399628748,1766572245375,-500.0,0.0001652,2]
[399628749,1766572245385,-2137.14,0.00016541,2]
[399628750,1766572245396,-502.78081012,0.00016548,2]
[399628751,1766572245406,-2232.0,0.00016566,2]
[399628752,1766572245416,-2232.0,0.00016567,2]
[399628753,1766572245427,-25405.33069754,0.00016655,2]
[399628754,1766572245438,-22773.42055353,0.00016655,2]
[399628755,1766572245448,-2256.77151538,0.0001666,2]
[399628756,1766572245457,-3461.5198006,0.00016674,2]
[399628757,1766572245467,-2232.0,0.00016706,2]
[399628758,1766572245477,-1362.377,0.00016712,2]
[399628759,1766572245486,-167.72,0.00016712,2]
[399628760,1766572245496,-2232.0,0.0001676,2]
[399628761,1766572245505,-300.0,0.00016765,2]
[399628762,1766572245515,-2137.14,0.00016815,2]
[399628763,1766572245526,-2000.0,0.00016816,2]
[399628764,1766572245537,-2000.0,0.00016816,2]
[399628765,1766572245547,-2000.0,0.00016816,2]
[399628766,1766572245557,-2000.0,0.00016816,2]
[399628767,1766572245568,-630.28190868,0.00016816,2]
[399628768,1766572245578,-2000.0,0.00016816,2]
[399628769,1766572245588,-2000.0,0.00016816,2]
[399628770,1766572245598,-2000.0,0.00016816,2]
[399628771,1766572245608,-1073.58059589,0.00016816,2]
[399628772,1766572245617,-437.14852253,0.00016816,2]
[399628773,1766572245627,-2000.0,0.00016816,2]
[399628774,1766572245637,-505.45508162,0.00016816,2]
[399628775,1766572245646,-200.0,0.00016863,2]
[399628776,1766572245656,-200.0,0.00016864,2]
[399628777,1766572245666,-10000.0,0.00016899,2]
[399628778,1766572245676,-465.4164627,0.000169,2]
[399628779,1766572245685,-25405.33069754,0.000169,2]
[399628780,1766572245695,-22773.42055353,0.000169,2]
[399628781,1766572245705,-12772.50046199,0.000169,2]
[399628782,1766572245718,-6599.0,0.000169,2]
[399628783,1766572245728,-206.68022999,0.00016906,2]
[399628784,1766572245738,-335.58,0.00016912,2]
[399628785,1766572245747,-4999.99,0.00016922,2]
[399628786,1766572245757,-7622.43,0.00016922,2]
[399628787,1766572245767,-9999.99,0.00016922,2]
[399628788,1766572245777,-9999.99,0.00016922,2]
[399628789,1766572245787,-9999.99,0.00016922,2]
[399628790,1766572245797,-9999.99,0.00016922,2]
[399628791,1766572245807,-299.99,0.00016922,4]
[399628792,1766572245817,-9999.99,0.00016922,2]
[399628793,1766572245826,-1577.15,0.00016922,5]
[399628794,1766572245835,-13357.38,0.00016922,2]
[399628795,1766572245846,-999.99,0.00016922,2]
[399628796,1766572245856,-150.99,0.00016922,2]
[399628797,1766572245866,-9633.98,0.00016922,2]
[399628798,1766572245876,-150.99,0.00016922,2]
[399628800,1766572245885,-18127.53,0.00016922,2]
[399628801,1766572245895,-2232.0,0.00016933,2]
[399628802,1766572245909,-205.24498925,0.00016957,2]
[399628803,1766572245919,-500.0,0.00016973,2]
[399628804,1766572245928,-150.0,0.00016973,2]
[399628805,1766572245937,-1092.09895844,0.00016976,7]
[399628806,1766572245947,-500.0,0.00016986,2]
[399628807,1766572245957,-500.0,0.00016986,2]
[399628808,1766572245968,-197.88,0.0001699,2]
[399628809,1766572245978,-1191.16039457,0.0001699,2]
[399628810,1766572245987,-1191.16039457,0.0001699,2]
[399628811,1766572245998,-151.0,0.00016996,2]
[399628812,1766572246008,-151.0,0.00016997,2]
[399628813,1766572246018,-500.0,0.00016998,2]
[399628814,1766572246028,-1244.21357413,0.00016999,5]
[399628815,1766572246038,-500.0,0.00016999,2]
[399628816,1766572246049,-500.0,0.00016999,2]
[399628817,1766572246059,-500.0,0.00016999,2]
[399628818,1766572246070,-500.0,0.00016999,2]
[399628819,1766572246080,-508.85643647,0.00016999,2]
[399628820,1766572246090,-500.0,0.00016999,2]
[399628821,1766572246104,-570.5676631,0.00016999,2]
[399628822,1766572246113,-500.0,0.00016999,2]
[399628823,1766572246123,-500.0,0.00016999,2]
[399628824,1766572246133,-500.0,0.00016999,2]
[399628825,1766572246148,-500.0,0.00016999,2]
[399628826,1766572246158,-500.0,0.00016999,2]
[399628827,1766572246168,-500.0,0.00016999,2]
[399628828,1766572246177,-500.0,0.00016999,2]
[399628829,1766572246188,-500.0,0.00016999,2]
[399628830,1766572246198,-500.0,0.00016999,2]
[399628831,1766572246209,-516.01929042,0.00016999,2]
[399628832,1766572246220,-500.0,0.00016999,2]
[399628833,1766572246230,-500.0,0.00016999,2]
[399628834,1766572246240,-470.56873009,0.00016999,2]
[399628835,1766572246249,-500.0,0.00016999,2]
[399628836,1766572246259,-500.0,0.00016999,2]
[399628837,1766572246269,-500.0,0.00016999,2]
[399628838,1766572246279,-500.0,0.00016999,2]
[399628839,1766572246289,-500.0,0.00016999,2]
[399628840,1766572246299,-500.0,0.00016999,2]
[399628841,1766572246309,-500.0,0.00016999,2]
[399628842,1766572246319,-521.52385313,0.00016999,2]
[399628843,1766572246328,-500.0,0.00016999,2]
[399628844,1766572246338,-500.0,0.00016999,2]
[399628845,1766572246347,-500.0,0.00016999,2]
[399628846,1766572246357,-500.0,0.00016999,2]
[399628847,1766572246367,-500.0,0.00016999,2]
[399628848,1766572246376,-500.0,0.00016999,2]
[399628849,1766572246386,-516.24004951,0.00016999,2]
[399628850,1766572246396,-528.10208627,0.00016999,2]
[399628851,1766572246406,-349.72390108,0.00016999,2]
[399628852,1766572246416,-451.43777448,0.00016999,2]
[399628853,1766572246426,-500.0,0.00016999,2]
[399628854,1766572246436,-500.0,0.00016999,2]
[399628855,1766572246446,-258.4625405,0.00016999,2]
[399628856,1766572246456,-500.0,0.00016999,2]
[399628857,1766572246466,-500.0,0.00016999,2]
[399628858,1766572246476,-500.0,0.00016999,2]
[399628859,1766572246485,-294.2331637,0.00016999,2]
[399628860,1766572246507,-500.0,0.00016999,2]
[399628861,1766572246519,-500.0,0.00016999,2]
[399628862,1766572246529,-500.0,0.00016999,2]
[399628863,1766572246539,-500.0,0.00016999,2]
[399628864,1766572246549,-500.0,0.00016999,2]
[399628865,1766572246559,-500.0,0.00016999,2]
[399628866,1766572246570,-500.0,0.00016999,2]
[399628867,1766572246580,-500.0,0.00016999,2]
[399628868,1766572246590,-500.0,0.00016999,2]
[399628869,1766572246600,-500.0,0.00016999,2]
[399628870,1766572246610,-500.0,0.00016999,2]
[399628871,1766572246620,-500.0,0.00016999,2]
[399628872,1766572246630,-546.71036452,0.00016999,2]
[399628873,1766572246639,-500.0,0.00016999,2]
[399628874,1766572246650,-500.0,0.00016999,2]
[399628875,1766572246659,-500.0,0.00016999,2]
[399628876,1766572246669,-515.32903938,0.00016999,2]
[399628877,1766572246680,-500.0,0.00016999,2]
[399628878,1766572246691,-500.0,0.00016999,2]
[399628879,1766572246701,-500.0,0.00016999,2]
[399628880,1766572246711,-500.0,0.00016999,2]
[399628881,1766572246721,-500.0,0.00016999,2]
[399628882,1766572246731,-500.0,0.00016999,2]
[399628883,1766572246741,-500.0,0.00016999,2]
[399628884,1766572246751,-500.0,0.00016999,2]
[399628885,1766572246762,-500.0,0.00016999,2]
[399628886,1766572246772,-500.0,0.00016999,2]
[399628887,1766572246782,-514.26068371,0.00016999,2]
[399628888,1766572246792,-500.0,0.00016999,2]
[399628889,1766572246802,-500.0,0.00016999,2]
[399628890,1766572246812,-80140.69720617,0.00016999,3]
[399628891,1766572246822,-500.0,0.00016999,2]
[399628892,1766572246832,-386.65632401,0.00016999,2]
[399628893,1766572246848,-11670.46524932,0.00016999,2]
[399628894,1766572246859,-300.0,0.00016999,2]
[399628895,1766572246870,-666.0,0.00016999,2]
[399628897,1766572246881,-1315788.76300605,0.00017,2]
[399628901,1766572246913,-300.6,0.00017,2]
[399628905,1766572246939,-1720.35,0.00017,2]
[399628910,1766572247104,-612.17096312,0.00015799,2]
[399628911,1766572247114,-5564.76753319,0.00017,2]
[399628912,1766572247136,-200186.84225631,0.00017,2]
[399628913,1766572247150,-250.0,0.00017,2]
[399628914,1766572247160,-2000.0,0.00017,2]
[399628915,1766572247171,-841497.17519737,0.00017,2]
[399628916,1766572247183,-449.53015002,0.00017,2]
[399628917,1766572249419,-1.7e-07,0.00017,2]
[399628918,1766572250078,-567.14226655,0.00017,2]
[399628919,1766572250304,-1768.08,0.00014698,2]
[399628920,1766572250316,-6173.1068,0.00014698,2]
[399628921,1766572250327,-151.0,0.00015173,2]
[399628922,1766572250337,-184.43376735,0.00015173,2]
[399628923,1766572250347,-12522.92618765,0.00017,2]
[399628924,1766572250380,-83.05104492,0.00017,2]
[399628925,1766572250391,-577.56337603,0.00017,2]
[399628926,1766572250402,-1847470.4958318,0.00017,2]
[399628927,1766572250717,-259.90101775,0.00014797,2]
[399628928,1766572250732,-240.09898225,0.00014797,2]
[399628929,1766572250741,-500.0,0.00014797,2]
[399628930,1766572250750,-346.78581759,0.00014797,2]
[399628931,1766572252172,-153.21418241,0.00014797,2]
[399628932,1766572252182,-612.17096312,0.00016166,2]
[399628933,1766572252191,-832.05599581,0.00017,2]
[399628934,1766572252206,-412.68282964,0.00017,2]
[399628935,1766572332877,249.79439262,0.00014623,2]
[399628936,1766572364744,185.22271186,0.00032876,120]
[399628937,1766572381342,197.89081002,0.00014598,2]
[399628939,1766572510032,4114.32479736,0.00014598,2]
[399628940,1766572510056,10000.01,0.00014598,2]
[399628941,1766572510078,8811.92194924,0.00014598,2]
[399628942,1766572524101,185.98,0.00031507,120]
[399628943,1766572540651,1060.09367565,0.00014598,2]
[399628944,1766572605749,2134.38,0.00021918,30]
[399628945,1766572621231,127.99437511,0.00014598,2]
[399628946,1766572621256,10000.01,0.00014598,2]
[399628947,1766572621282,10000.01,0.00014598,2]
[399628948,1766572621305,2736.78325273,0.00014598,2]
[399628949,1766572622218,500.0,0.00014595,2]
[399628950,1766572624668,505.07,0.00032876,120]
[399628951,1766572656949,814.78,0.00013699,2]
[399628952,1766572659437,2000.0,0.00032876,120]
[399628953,1766572662946,166.52959508,0.00014594,2]
[399628954,1766572669084,166.52959508,0.00014596,2]
[399628955,1766572674913,166.52959508,0.00014598,2]
[399628956,1766572691125,771.0,0.00032876,120]
[399628957,1766572770940,357.5152,0.00014594,2]
[399628958,1766572773346,150.0,0.00013979,2]
[399628959,1766572774547,500.0,0.00014625,2]
[399628960,1766572775477,508.93435173,0.00014652,2]
[399628961,1766572809815,500.0,0.00014625,2]
[399628962,1766572809875,203.38212511,0.00014625,2]
[399628963,1766572809979,357.8871495,0.00014652,2]
[399628964,1766572810292,150.0,0.00014625,2]
[399628965,1766572810665,500.0,0.00014625,2]
[399628966,1766572810874,500.0,0.00014652,2]
[399628967,1766572811306,500.0,0.00014625,2]
[399628968,1766572811475,500.0,0.00014652,2]
[399628969,1766572826094,721.13913569,0.00014598,2]
[399628970,1766572826119,206.44283046,0.00014598,2]
[399628971,1766572830230,9793.56716954,0.0001374,2]
[399628972,1766572830253,10000.01,0.0001374,2]
[399628973,1766572830275,10000.01,0.0001374,2]
[399628974,1766572830297,10000.01,0.0001374,2]
[399628975,1766572830320,10000.01,0.0001374,2]